Cogmind - Beta 10.2 @@@ ROGUE MODE // 2021.12.24 @ 13:05:50 Player: DDRAGON Result: Destroyed by G-47 Trooper with Particle Gun Performance ------------- Evolutions (2) 1000 Regions Visited (5) 1000 Robots Destroyed (16) 80 Value Destroyed (429) 429 Prototype IDs (3) 60 Alien Tech Used (0) 0 Bonus (300) 300 TOTAL SCORE: 2869 Bonus ------- Aligned with FarCom 300 Cogmind --------- Core Integrity 0/550 Matter 235/300 Energy 129/200 System Corruption 0% Temperature Cool (9) Movement Walking (120) Location -8/Materials Parts ------- > --- POWER (1) -------- (None) > --- PROPULSION (4) --- Carbon-fiber Leg > --- UTILITY (3) ------ Small Battery > --- WEAPON (3) ------- Light Assault Rifle > --- INVENTORY (4) ---- Supersonic Drone Bay (0/1) Peak State ------------ > --- POWER ------------ Light Ion Engine > --- PROPULSION ------- Flight Unit Flight Unit Flight Unit Cesium-ion Thruster > --- UTILITY ---------- Small Battery Transmission Jammer Supersonic Drone Bay > --- WEAPON ----------- Light Assault Rifle Light Assault Rifle Light Assault Rifle > --- INVENTORY -------- Particle Charger Shock Rifle Grenade Launcher [Rating: 22] Favorites ----------- Power Light Ion Engine Engine Light Ion Engine Propulsion Flight Unit Leg Aluminum Leg Flight Unit Flight Unit Utility Small Battery Device Supersonic Drone Bay Storage Small Battery Weapon Light Assault Rifle Energy Gun Shock Rifle Ballistic Gun Light Assault Rifle Launcher Grenade Launcher Special Weapon Plasma Cutter Build | -11 -10 -10 -10 -9 -8 ------- Run | Scr Mat Min Exi Min Mat Slots Evolved 4 | . . . . . 4 Power . | . . . . . . Propulsion 2 | . . . . . 2 Utility 1 | . . . . . 1 Weapon 1 | . . . . . 1 Parts Attached 39 | 6 4 6 2 2 19 Power 4 | 1 . 2 . . 1 Engine 4 | 1 . 2 . . 1 Core . | . . . . . . Reactor . | . . . . . . Propulsion 9 | 2 2 2 . . 3 Treads . | . . . . . . Leg 5 | 2 2 . . . 1 Wheel . | . . . . . . Hover . | . . . . . . Flight 4 | . . 2 . . 2 Utility 8 | 1 2 . 2 . 3 Device 3 | . . . 1 . 2 Storage 5 | 1 2 . 1 . 1 Processor . | . . . . . . Hackware . | . . . . . . Protection . | . . . . . . Artifact . | . . . . . . Weapon 18 | 2 . 2 . 2 12 Energy Gun 6 | . . . . . 6 Energy Cannon . | . . . . . . Ballistic Gun 8 | 2 . 2 . 1 3 Ballistic Cannon . | . . . . . . Launcher 2 | . . . . 1 1 Special Weapon 2 | . . . . . 2 Impact Weapon . | . . . . . . Slashing Weapon . | . . . . . . Piercing Weapon . | . . . . . . Special Melee Weapon . | . . . . . . Unidentified Prototypes 1 | . . . 1 . . Parts Lost 17 | . 1 . . . 16 Power 1 | . . . . . 1 Propulsion 4 | . . . . . 4 Utility 1 | . . . . . 1 Weapon 11 | . 1 . . . 10 Highest Loss Streak 10 | . 1 . . . 10 Average Slot Usage (%) 76 | . 76 74 79 100 71 Engine 12 | . 14 14 14 14 8 Leg 7 | . 28 6 . . . Flight 17 | . . 20 28 28 21 Device 6 | . . . 4 14 13 Storage 8 | . 14 8 3 14 6 Energy Gun 1 | . . . . . 3 Ballistic Gun 21 | . 19 25 28 25 15 Naked Turns 2 | . . . . . 2 Heaviest Build 23 | 11 23 23 7 9 11 Greatest Support 20 | 20 20 20 8 8 15 Greatest Overweight (x) 7 | 3 1 7 . 1 2 Average Overweight (x) . | . . . . . . Largest Inventory Capacity 12 | 6 12 10 4 4 4 Average Capacity 5 | 5 9 6 4 4 4 Most Carried 7 | 2 4 7 4 4 4 Average Carried 2 | . 2 2 2 3 2 Final Capacity 10 | 6 10 4 4 4 4 Final Carried 4 | 1 3 2 2 4 1 Class Distribution -------------------- 40% | Mutant 38% | Scavenger-Mutant 20% | Scavenger-Skirmisher Dominant Class ---------------- Mutant | -10/Materials Scavenger-Mutant | -10/Mines Scavenger-Mutant | -10/Exiles Scavenger-Mutant | -9/Mines Scavenger-Skirmisher | -8/Materials Resources | -11 -10 -10 -10 -9 -8 ----------- Run | Scr Mat Min Exi Min Mat Matter Collected 678 | 174 117 12 . 207 168 Remotely . | . . . . . . Salvage Created 378 | . 117 46 . 7 208 Parts 29 | . 6 5 . 2 16 Haulers Intercepted . | . . . . . . Recyclers Shooed . | . . . . . . Parts Field Recycled . | . . . . . . Retrieved Matter . | . . . . . . Parts Self-Destructed . | . . . . . . Prevented . | . . . . . . Kills | -11 -10 -10 -10 -9 -8 ------- Run | Scr Mat Min Exi Min Mat Combat Hostiles Destroyed 14 | . 3 3 . 3 5 Guns 11 | . 3 3 . . 5 AOE 3 | . . . . 3 . Classes Destroyed 5 | . 1 1 . . 3 Builder 2 | . . . . . 2 Swarmer 6 | . . 3 . 3 . Grunt 4 | . 3 . . . 1 Sentry 2 | . . . . . 2 Hunter 2 | . . . . . 2 Best Kill Streak 5 | . 2 3 . 3 5 Combat Bots Only 4 | . 2 3 . 3 4 Max Kills in Single Turn 3 | . 1 1 . 3 1 Gunslinging . | . . . . . . Exploded 3 | . . . . 3 . Melee . | . . . . . . Uniques/NPCs Destroyed . | . . . . . . Combat | -11 -10 -10 -10 -9 -8 -------- Run | Scr Mat Min Exi Min Mat Damage Taken 1903 | . 403 92 . 30 1378 Core 616 | . 23 27 . 10 556 Absorbed by Shields . | . . . . . . Core Remaining (%) 88 | 100 . . . 76 . Volleys Fired 58 | . 25 7 . 1 25 Largest 3 | . 2 1 . 2 3 Hottest 189 | . 40 20 . 50 189 Shots Fired 107 | . 35 7 . 2 63 Gun 95 | . 35 7 . 1 52 Cannon . | . . . . . . Launcher 8 | . . . . 1 7 Special 4 | . . . . . 4 Kinetic 80 | . 35 7 . 1 37 Thermal 14 | . . . . . 14 Explosive 8 | . . . . 1 7 Electromagnetic 5 | . . . . . 5 Robot Hit Streak 9 | . 5 1 . 2 9 Robot Miss Streak 4 | . 4 2 . . 4 Penetration Max . | . . . . . . Secondary Targets 3 | . 1 . . . 2 Max Gunslinging Chain 1 | . 1 . . . 1 Shots Hit Robots 60 | . 17 3 . 1 39 Core Hits 40 | . 6 3 . 3 28 Critical Hits . | . . . . . . Critical Kills . | . . . . . . Critical Parts Destroyed . | . . . . . . Melee Attacks . | . . . . . . Impact . | . . . . . . Slashing . | . . . . . . Piercing . | . . . . . . Sneak Attacks . | . . . . . . Combat Hostiles . | . . . . . . Follow-up Attacks . | . . . . . . Damage Inflicted 1084 | . 238 38 . 109 699 Guns 662 | . 235 38 . . 389 Cannons . | . . . . . . Explosions 397 | . . . . 109 288 Melee . | . . . . . . Ramming 3 | . 3 . . . . Kinetic 484 | . 235 38 . . 211 Thermal 142 | . . . . . 142 Explosive 397 | . . . . 109 288 Electromagnetic 58 | . . . . . 58 Impact . | . . . . . . Slashing . | . . . . . . Piercing . | . . . . . . Highest Corruption . | . . . . . . Average Corruption . | . . . . . . Corruption Purged . | . . . . . . Overload Shots . | . . . . . . Overflow Damage . | . . . . . . Projectiles . | . . . . . . Explosions . | . . . . . . Melee . | . . . . . . Knockbacks . | . . . . . . Impact . | . . . . . . Kinetic . | . . . . . . Secondary . | . . . . . . Self-Inflicted Damage 1 | . 1 . . . . Shots . | . . . . . . Rammed 2 | . 2 . . . . Targets Rammed 2 | . 2 . . . . Kicked . | . . . . . . Crushed . | . . . . . . Highest Temperature 413 | . 9 . . 14 413 Average Temperature 94 | . 4 . . 10 102 Received Heat Transfer 783 | . 225 . . . 558 Siege Activations . | . . . . . . Robots Corrupted . | . . . . . . Combat Hostiles . | . . . . . . Parts Fried 1 | . . . . . 1 Impact Corruptions . | . . . . . . Robots Melted . | . . . . . . Combat Hostiles . | . . . . . . Parts Melted . | . . . . . . Heat Transferred 333 | . . . . . 333 Parts Sabotaged . | . . . . . . Parts Stolen . | . . . . . . Parts Stripped . | . . . . . . Power Chain Reactions . | . . . . . . Missiles Intercepted . | . . . . . . Alert | -11 -10 -10 -10 -9 -8 ------- Run | Scr Mat Min Exi Min Mat Peak Influence 265 | . 150 143 . 70 265 Initial 58 | . . 58 . . 27 Average 99 | . 89 137 . 40 119 Maximum Alert Level 1 | . . . . . 1 Low Security (%) 85 | 100 100 100 . 100 64 Level 1 14 | . . . . . 35 Level 2 . | . . . . . . Level 3 . | . . . . . . Level 4 . | . . . . . . Level 5 . | . . . . . . High Security . | . . . . . . Max Security . | . . . . . . Squads Dispatched 2 | . 1 . . . 1 Investigation . | . . . . . . Extermination . | . . . . . . Reinforcement 2 | . 1 . . . 1 Assault . | . . . . . . Garrison . | . . . . . . Intercept . | . . . . . . Construction Impeded . | . . . . . . Haulers Reinforced . | . . . . . . Stealth | -11 -10 -10 -10 -9 -8 --------- Run | Scr Mat Min Exi Min Mat Distress Signals 5 | . 2 . . . 3 Communications Jammed 3 | . . . . . 3 Distress Signals 3 | . . . . . 3 Times Spotted 33 | . 10 3 . 4 16 Peak Tracking Total 10 | . 6 3 . 4 10 Tactical Retreats 4 | . 2 . . . 2 Traps | -11 -10 -10 -10 -9 -8 ------- Run | Scr Mat Min Exi Min Mat Traps Triggered . | . . . . . . Indirectly . | . . . . . . Trap Hack Attempts . | . . . . . . Triggered . | . . . . . . Disarmed . | . . . . . . Reprogrammed . | . . . . . . Reused . | . . . . . . Traps Extracted . | . . . . . . Installed . | . . . . . . Triggered . | . . . . . . Machines | -11 -10 -10 -10 -9 -8 ---------- Run | Scr Mat Min Exi Min Mat Machines Disabled 1 | . . . . . 1 Max in Single Turn 1 | . . . . . 1 Machines Sabotaged . | . . . . . . Garrisons Compromised . | . . . . . . Overloaded Fab Kills . | . . . . . . Fab Network Shutdowns . | . . . . . . Hacking | -11 -10 -10 -10 -9 -8 --------- Run | Scr Mat Min Exi Min Mat Machines Accessed 5 | . 3 . 1 . 1 Terminals 2 | . 1 . . . 1 Fabricators . | . . . . . . Repair Stations . | . . . . . . Recycling Units 2 | . 2 . . . . Scanalyzers . | . . . . . . Garrison Access . | . . . . . . Total Hacks 13 | . 4 . 8 . 1 Successful 12 | . 3 . 8 . 1 Failed 1 | . 1 . . . . Catastrophic . | . . . . . . Database Lockouts . | . . . . . . Manual 6 | . . . 6 . . Terminals 3 | . 2 . . . 1 Fabricators . | . . . . . . Repair Stations . | . . . . . . Recycling Units 2 | . 2 . . . . Scanalyzers . | . . . . . . Garrison Access . | . . . . . . Terminal Hacks 10 | . 1 . 8 . 1 Record 8 | . . . 8 . . Robot Analysis 1 | . 1 . . . . Prototype ID Bank 1 | . . . . . 1 Fabricator Hacks . | . . . . . . Repair Station Hacks . | . . . . . . Recycling Unit Hacks 2 | . 2 . . . . Retrieve Components 2 | . 2 . . . . Scanalyzer . | . . . . . . Garrison Access Hacks . | . . . . . . Unauthorized Hacks . | . . . . . . Terminals . | . . . . . . Fabricators . | . . . . . . Repair Stations . | . . . . . . Recycling Units . | . . . . . . Scanalyzers . | . . . . . . Garrison Access . | . . . . . . Data Cores Recovered . | . . . . . . Used . | . . . . . . Hacking Detections 1 | . . . . . 1 Full Trace Events . | . . . . . . Feedback Events . | . . . . . . Feedback Blocked . | . . . . . . Robot Schematics Acquired . | . . . . . . Robots Built . | . . . . . . Matter . | . . . . . . Time . | . . . . . . Total Robot Build Rating . | . . . . . . Part Schematics Acquired . | . . . . . . Parts Built . | . . . . . . Matter . | . . . . . . Time . | . . . . . . Total Part Build Rating . | . . . . . . Parts Repaired . | . . . . . . Time . | . . . . . . Parts Recycled . | . . . . . . Recycled Matter . | . . . . . . Retrieved Matter . | . . . . . . Retrieved Components 3 | . 3 . . . . Parts Scanalyzed . | . . . . . . Part Schematics Acquired . | . . . . . . Parts Damaged . | . . . . . . Bothacking | -11 -10 -10 -10 -9 -8 ------------ Run | Scr Mat Min Exi Min Mat Used RIF Installer . | . . . . . . Robots Hacked . | . . . . . . Non-combat . | . . . . . . Combat . | . . . . . . Robot Hacks Applied . | . . . . . . Relay Couplers Released . | . . . . . . Robots Rewired . | . . . . . . Allies Hacked . | . . . . . . Hacks Repelled . | . . . . . . Allies | -11 -10 -10 -10 -9 -8 -------- Run | Scr Mat Min Exi Min Mat Total Allies . | . . . . . . Largest Group . | . . . . . . Highest-Rated Group . | . . . . . . Highest-Rated Ally . | . . . . . . Total Orders . | . . . . . . Ally Attacks . | . . . . . . Total Damage . | . . . . . . Kills . | . . . . . . Allies Corrupted . | . . . . . . Allies Melted . | . . . . . . Intel | -11 -10 -10 -10 -9 -8 ------- Run | Scr Mat Min Exi Min Mat Robot Analysis Total 1 | . 1 . . . . Derelict Logs Recovered . | . . . . . . Drone Launches 1 | . . . . . 1 Drone Recoveries . | . . . . . . Exploration | -11 -10 -10 -10 -9 -8 ------------- Run | Scr Mat Min Exi Min Mat Turns Passed 1258 | 76 298 139 290 52 403 Spaces Moved 1805 | 51 155 240 756 112 491 Core 51 | 14 . 1 . . 36 Treads . | . . . . . . Legs 200 | 37 155 6 . . 2 Wheels . | . . . . . . Hover . | . . . . . . Flight 1554 | . . 233 756 112 453 Fastest Speed 34 | 50 120 37 37 37 34 Average Speed 51 | 124 144 44 37 37 42 Slowest Speed 440 | 200 150 440 37 117 150 Overloaded Moves . | . . . . . . Propulsion Burnouts . | . . . . . . Robots Hopped 14 | . . 5 . 1 8 Cave-ins Triggered . | . . . . . . Exploration Rate (%) 38 | 5 30 35 94 35 34 Regions Visited 5 Branch Regions 3 Pre-discovered Areas 1 | . . . 1 . . Known Exits Taken . | . . . . . . Unknown Exits Taken 5 | 1 1 1 1 1 . Scrap Searched 1 | . . . . 1 . Spaces Dug . | . . . . . . Terrain Destroyed 40 | . . . . 6 34 Melee . | . . . . . . Projectile . | . . . . . . AOE 40 | . . . . 6 34 Terrain Rammed . | . . . . . . Walls Destroyed . | . . . . . . Machines Disabled . | . . . . . . Actions | -11 -10 -10 -10 -9 -8 --------- Run | Scr Mat Min Exi Min Mat Total 2041 | 63 195 264 766 119 634 Wait 88 | . . 2 3 . 83 Move 1772 | 50 154 229 755 109 475 Hop 14 | . . 5 . 1 8 Pick Up 38 | 7 6 4 4 3 14 Fast Attach . | . . . . . . Attach 36 | 6 2 5 2 2 19 Detach 13 | . 1 5 . 2 5 Swap 3 | . 2 1 . . . Drop 17 | . 3 6 2 1 5 Fire 58 | . 25 7 . 1 25 Melee . | . . . . . . Ram . | . . . . . . Kick 2 | . 2 . . . . Crush . | . . . . . . Escape Stasis . | . . . . . . Rewire . | . . . . . . Trap . | . . . . . . Miscellaneous . | . . . . . . Route ------- -11/Scrapyard -10/Materials -10/Mines (discovered 2 exits: [*Mat] / *Exi) -10/Exiles (discovered 2 exits: [*Min x2]) -9/Mines -8/Materials History --------- Turn | Location | Event 25 | -11/Scrapyard | Discovered new exit (range 15) 77 | -11/Scrapyard | Entered Materials 315 | -10/Materials | Build established: Mutant 322 | -10/Materials | Discovered new exit (range 15) 375 | -10/Materials | Entered Mines 442 | -10/Mines | Discovered new exit (range 14) 511 | -10/Mines | Deemed a non-threat by the Exiles lab entrance 511 | -10/Mines | Discovered new exit (range 5) 514 | -10/Mines | Entered Exiles 520 | -10/Exiles | Discovered new exit (range 14) 534 | -10/Exiles | Met 8R-AWN 540 | -10/Exiles | Met EX-HEX 554 | -10/Exiles | Met EX-DEC 567 | -10/Exiles | Visited The Gauntlet 630 | -10/Exiles | Learned location of Zion (-6) 653 | -10/Exiles | Discovered new exit (range 10) 680 | -10/Exiles | Met EX-BIN 684 | -10/Exiles | Aligned with FarCom system 685 | -10/Exiles | Given EX-Vault access code 695 | -10/Exiles | Build established: Scavenger-Mutant 714 | -10/Exiles | Opened EX-Vault 716 | -10/Exiles | Found Prototype Device 717 | -10/Exiles | Identified Supersonic Drone Bay 726 | -10/Exiles | Warned to stay clear of 0b10 Research branches 804 | -10/Exiles | Left Exiles lab with Supersonic Drone Bay 804 | -10/Exiles | Entered Mines 823 | -9/Mines | YI-UF0 nonchalantly dropped a Grenade Launcher on the ground 852 | -9/Mines | Discovered new exit (range 6) 856 | -9/Mines | Entered Materials 856 | -8/Materials | Evolved 4 slots: Propulsion x2, Utility x1, Weapon x1 1168 | -8/Materials | Lost 4 parts (2n2w) 1181 | -8/Materials | Core integrity fell below 50% 1243 | -8/Materials | Core integrity fell below 20% 1259 | -8/Materials | Destroyed by G-47 Trooper with Particle Gun Last Messages --------------- Acquired Pulse Rifle. K-01 Serf collects debris. Acquired Pulse Rifle. G-47 Trooper destroyed. Lgt. Ion Engine destroyed. G-47 Trooper destroyed. Switching to secondary target: G-47 Trooper. Pulse Rifle destroyed. K-01 Serf collects debris. Pulse Rifle destroyed. Acquired Pulse Rifle. K-01 Serf collects debris. K-01 Serf cleans the Electrolysis Chamber. K-01 Serf collects debris. Acquired 29 matter. Acquired Carbon-fiber Leg. K-01 Serf collects debris. Pulse Rifle destroyed. Acquired 23 matter. K-01 Serf collects debris. Map ----- +----------------------------------------------------+ | | | | | | | | | | | | | | | | | ????????????????????????????????????????? | | ????????????????????????????????????????? | | ????????????????????????????????????????? | | ????????????????????????????????????????? | | ????????????????############????????????? | | ???????????????? # #????????????? | | ????????????????? # #????????????? | | ???????????????? # ###########??? | | ???????????????? # # #??? | | ?????????????????"" """ # # """"""" #??? | | ????????????????""" """ # # %"""""" #??? | | ??????????????# """ """ # # """"""" #??? | | ??????????????# ; b %"""""" #??? | | ?????################## """""" #??? | | ?????# #??????# * # ! #??? | | ????## ! T #??????## #% # #??? | | ????# #??????# ![g #+######??? | | ?????# ######### #@ g= #?????? | | ?????# + ! % g #?????? | | ?????# """ # !k=* #?????? | | ?????# """ # ######w# [#%= [ #?????? | | ?????# """ # ## # #[ #?????? | | ?????# ! # ## """ #### #?????? | | ?????##########+##/ """ #??########?????? | | ??????# ! ## k""" #???????????Y???? | | ??????# ##] #???????????????? | | ####### | ## "" #???????????????? | | # ! ## "" #???????????????? | | + ## """ #???????????????? | | " # ## #???????????????? | | ### # ## #???????????????? | | ??# # ! ## !/| #???????????????? | | ??# ############! ! | #???????????????? | | ??# #??????????# / #???????????????? | | ??# #??????????########???????????????? | | ??# #?????????????????????????????????? | | ??# #?????????????????????????????????? | | ??# #?????????????????????????????????? | | ??# #?????????????????????????????????? | | ??# #?????????????????????????????????? | | ??# #?????????????????????????????????? | | ### #?????????????????????????????????? | +----------------------------------------------------+ Best States ------------- Heat Dissipation 31 Energy Generation 10 Energy Capacity 250 Matter Stores 292 Matter Capacity 400 Sight Range 16 Terrain Scan Density 10 Jamming Range 8 Evasion (%) 63 Item Schematics ----------------- None Robot Schematics ------------------ None Fabricated ------------ Nothing Alien Tech Used ----------------- None Achievements -------------- None Challenges ------------ None Game ------ Seed BlastTractorTendrils Manual? 0 Play Time 00:27:29 Cumulative 7.4 hours Start 2021.12.24 @ 12:40:07 End 2021.12.24 @ 13:05:50 Sessions 1 Manual Loads 0 Difficulty Rogue Special Mode None Game No. 11 Rogue 11 Adventurer 0 Explorer 0 Win Type - Total 0 Types 0/0/0/0/0/0/0/0/0 Lore% 12 Gallery% 19 Achievement% 13 Wizard Run 0 Options --------- ASCII 0 Keyboard 1 Movement Numpad Keybinds 0 Fullscreen 1 Font 24/Proggy Map View 76x50 Tactical HUD 0 Map Filters NONE Filters NONE Steam 1 RUN: 811035fd-5fbc-42bb-b849-867d18dfc401